[Event "Titled Tuesday Blitz June 1 2021"]
[White "Davtyan, David Arm."]
[Black "Ibrahimli, Murad"]
[WhiteFideId "13310046"]
[BlackFideId "13410229"]
[WhiteElo "2028"]
[BlackElo "2109"]
[Result "0-1"]
[Round "03"]
[TimeControl "180+1"]
[Date "2021.06.01"]
[WhiteClock "0:00:01"]
[BlackClock "0:00:07"]

1. e4 {[%clk 0:03:00]}  c5 {[%clk 0:02:57]} 2. Nc3 {[%clk 0:02:59]}  Nc6 {[%clk 0:02:57]} 3. Bb5 {[%clk 0:02:57]}  Nd4 {[%clk 0:02:57]} 4. Nf3 {[%clk 0:02:56]}  e6 {[%clk 0:02:57]} 5. O-O {[%clk 0:02:53]}  Ne7 {[%clk 0:02:56]} 6. Bd3 {[%clk 0:02:36]}  Nec6 {[%clk 0:02:55]} 7. Nxd4 {[%clk 0:02:33]}  cxd4 {[%clk 0:02:54]} 8. Ne2 {[%clk 0:02:32]}  Bc5 {[%clk 0:02:46]} 9. c3 {[%clk 0:02:31]}  a5 {[%clk 0:02:41]} 10. Qa4 {[%clk 0:02:27]}  dxc3 {[%clk 0:02:25]} 11. dxc3 {[%clk 0:02:25]}  O-O {[%clk 0:02:25]} 12. Qc2 {[%clk 0:02:19]}  Ne5 {[%clk 0:02:23]} 13. Bf4 {[%clk 0:02:14]}  Qf6 {[%clk 0:02:21]} 14. Rad1 {[%clk 0:02:05]}  b6 {[%clk 0:02:04]} 15. Bxe5 {[%clk 0:01:50]}  Qxe5 {[%clk 0:02:02]} 16. Kh1 {[%clk 0:01:51]}  f6 {[%clk 0:01:44]} 17. f4 {[%clk 0:01:48]}  Qh5 {[%clk 0:01:42]} 18. Bb5 {[%clk 0:01:39]}  Ra7 {[%clk 0:01:36]} 19. Qd2 {[%clk 0:01:34]}  Rd8 {[%clk 0:01:25]} 20. a4 {[%clk 0:01:28]}  d5 {[%clk 0:01:23]} 21. b4 {[%clk 0:01:25]}  Be7 {[%clk 0:01:21]} 22. e5 {[%clk 0:01:23]}  fxe5 {[%clk 0:01:12]} 23. fxe5 {[%clk 0:01:24]}  Qxe5 {[%clk 0:01:10]} 24. Nd4 {[%clk 0:01:24]}  Bd6 {[%clk 0:01:02]} 25. g3 {[%clk 0:01:17]}  Qe4+ {[%clk 0:00:59]} 26. Kg1 {[%clk 0:01:15]}  axb4 {[%clk 0:00:55]} 27. cxb4 {[%clk 0:01:07]}  Rc7 {[%clk 0:00:49]} 28. Rde1 {[%clk 0:01:03]}  Qg6 {[%clk 0:00:41]} 29. Bd3 {[%clk 0:01:03]}  Qe8 {[%clk 0:00:32]} 30. Nf5 {[%clk 0:00:58]}  Bf8 {[%clk 0:00:31]} 31. Qg5 {[%clk 0:00:48]}  Kh8 {[%clk 0:00:22]} 32. Rf4 {[%clk 0:00:44]}  g6 {[%clk 0:00:20]} 33. Nh4 {[%clk 0:00:29]}  Qe7 {[%clk 0:00:09]} 34. Rf6 {[%clk 0:00:16]}  Bg7 {[%clk 0:00:08]} 35. Nxg6+ {[%clk 0:00:11]}  hxg6 {[%clk 0:00:07]} 36. Qxg6 {[%clk 0:00:11]}  Bxf6 {[%clk 0:00:07]} 37. Rf1 {[%clk 0:00:10]}  Bd4+ {[%clk 0:00:07]} 38. Kh1 {[%clk 0:00:10]}  Qg7 {[%clk 0:00:07]} 39. Qh5+ {[%clk 0:00:05]}  Kg8 {[%clk 0:00:08]} 40. Bg6 {[%clk 0:00:05]}  Rf8 {[%clk 0:00:07]} 41. Rd1 {[%clk 0:00:03]}  Rf6 {[%clk 0:00:07]} 42. Bb1 {[%clk 0:00:01]}  e5 {[%clk 0:00:08]} 43. Qe8+ {[%clk 0:00:01]}  Rf8 {[%clk 0:00:07]} 44. Qh5 {[%clk 0:00:01]}  Rcf7 {[%clk 0:00:07]} 0-1


[Site "https://www.chess.com"]

[Event "Titled Tuesday Blitz June 1 2021"]
[White "Demidov, Mikhail"]
[Black "Klimkowski, Jan"]
[WhiteFideId "4197143"]
[BlackFideId "21856222"]
[WhiteElo "2809"]
[BlackElo "2631"]
[Result "1-0"]
[Round "03"]
[TimeControl "180+1"]
[Date "2021.06.01"]
[WhiteClock "0:01:19"]
[BlackClock "0:00:30"]

1. Nf3 {[%clk 0:03:00]}  Nf6 {[%clk 0:02:59]} 2. g3 {[%clk 0:03:01]}  b5 {[%clk 0:02:59]} 3. Bg2 {[%clk 0:03:01]}  Bb7 {[%clk 0:03:00]} 4. O-O {[%clk 0:03:00]}  e6 {[%clk 0:03:00]} 5. a4 {[%clk 0:02:59]}  b4 {[%clk 0:03:00]} 6. a5 {[%clk 0:02:58]}  Be7 {[%clk 0:02:59]} 7. c4 {[%clk 0:02:57]}  c5 {[%clk 0:02:56]} 8. b3 {[%clk 0:02:57]}  O-O {[%clk 0:02:52]} 9. Bb2 {[%clk 0:02:57]}  d6 {[%clk 0:02:52]} 10. d4 {[%clk 0:02:56]}  Nbd7 {[%clk 0:02:50]} 11. Nbd2 {[%clk 0:02:55]}  Ne4 {[%clk 0:02:43]} 12. a6 {[%clk 0:02:53]}  Bc6 {[%clk 0:02:38]} 13. Qc2 {[%clk 0:02:48]}  Nxd2 {[%clk 0:02:29]} 14. Nxd2 {[%clk 0:02:47]}  Bxg2 {[%clk 0:02:29]} 15. Kxg2 {[%clk 0:02:48]}  cxd4 {[%clk 0:02:27]} 16. Bxd4 {[%clk 0:02:47]}  Qc7 {[%clk 0:02:27]} 17. Rfd1 {[%clk 0:02:45]}  Rac8 {[%clk 0:02:25]} 18. Qe4 {[%clk 0:02:40]}  Nc5 {[%clk 0:02:08]} 19. Bxc5 {[%clk 0:02:38]}  dxc5 {[%clk 0:02:09]} 20. Qb7 {[%clk 0:02:28]}  Bf6 {[%clk 0:02:01]} 21. Ra2 {[%clk 0:02:23]}  Rfd8 {[%clk 0:01:57]} 22. Rc1 {[%clk 0:02:11]}  Be7 {[%clk 0:01:51]} 23. Rcc2 {[%clk 0:02:06]}  Rd7 {[%clk 0:01:40]} 24. Qxc7 {[%clk 0:02:02]}  Rcxc7 {[%clk 0:01:41]} 25. Nf3 {[%clk 0:02:00]}  f6 {[%clk 0:01:39]} 26. Ra5 {[%clk 0:01:59]}  Rc6 {[%clk 0:01:36]} 27. Rd2 {[%clk 0:01:58]}  Rxd2 {[%clk 0:01:33]} 28. Nxd2 {[%clk 0:01:59]}  Bd8 {[%clk 0:01:33]} 29. Ra2 {[%clk 0:01:57]}  f5 {[%clk 0:01:30]} 30. Kf1 {[%clk 0:01:55]}  Bf6 {[%clk 0:01:22]} 31. e3 {[%clk 0:01:53]}  g5 {[%clk 0:01:20]} 32. Nf3 {[%clk 0:01:49]}  g4 {[%clk 0:01:18]} 33. Ne1 {[%clk 0:01:49]}  Rd6 {[%clk 0:01:14]} 34. Ke2 {[%clk 0:01:49]}  Be7 {[%clk 0:00:42]} 35. Nd3 {[%clk 0:01:47]}  Rc6 {[%clk 0:00:43]} 36. f3 {[%clk 0:01:43]}  gxf3+ {[%clk 0:00:42]} 37. Kxf3 {[%clk 0:01:43]}  Kg7 {[%clk 0:00:43]} 38. e4 {[%clk 0:01:41]}  Kf6 {[%clk 0:00:43]} 39. exf5 {[%clk 0:01:41]}  Kxf5 {[%clk 0:00:41]} 40. g4+ {[%clk 0:01:39]}  Kg5 {[%clk 0:00:40]} 41. h4+ {[%clk 0:01:32]}  Kh6 {[%clk 0:00:31]} 42. g5+ {[%clk 0:01:31]}  Kh5 {[%clk 0:00:31]} 43. Nf4+ {[%clk 0:01:18]}  Kxh4 {[%clk 0:00:30]} 44. Rg2 {[%clk 0:01:19]} 1-0


[Site "https://www.chess.com"]

[Event "Titled Tuesday Blitz June 1 2021"]
[White "Dobre, Claudiu-Cristian"]
[Black "Nazaretyan, Tigran"]
[WhiteFideId "1211854"]
[BlackFideId "24162345"]
[WhiteElo "2230"]
[BlackElo "2247"]
[Result "0-1"]
[Round "03"]
[TimeControl "180+1"]
[Date "2021.06.01"]
[WhiteClock "0:00:31"]
[BlackClock "0:00:14"]

1. e4 {[%clk 0:03:00]}  c5 {[%clk 0:01:51]} 2. Nf3 {[%clk 0:02:59]}  d6 {[%clk 0:01:50]} 3. Bb5+ {[%clk 0:02:58]}  Bd7 {[%clk 0:01:50]} 4. Bxd7+ {[%clk 0:02:58]}  Qxd7 {[%clk 0:01:50]} 5. c4 {[%clk 0:02:58]}  Nc6 {[%clk 0:01:49]} 6. Nc3 {[%clk 0:02:56]}  Nd4 {[%clk 0:01:48]} 7. d3 {[%clk 0:02:39]}  e6 {[%clk 0:01:42]} 8. Nxd4 {[%clk 0:02:36]}  cxd4 {[%clk 0:01:42]} 9. Ne2 {[%clk 0:02:35]}  e5 {[%clk 0:01:38]} 10. f4 {[%clk 0:02:24]}  Ne7 {[%clk 0:01:32]} 11. f5 {[%clk 0:02:21]}  Nc6 {[%clk 0:01:29]} 12. Bd2 {[%clk 0:02:17]}  a5 {[%clk 0:01:25]} 13. a4 {[%clk 0:01:47]}  Be7 {[%clk 0:01:19]} 14. O-O {[%clk 0:01:44]}  Qd8 {[%clk 0:01:15]} 15. Qc1 {[%clk 0:01:43]}  h6 {[%clk 0:01:15]} 16. Ng3 {[%clk 0:01:39]}  Bg5 {[%clk 0:01:13]} 17. Nh5 {[%clk 0:01:37]}  Rh7 {[%clk 0:00:45]} 18. f6 {[%clk 0:01:28]}  Bxd2 {[%clk 0:00:37]} 19. Nxg7+ {[%clk 0:01:04]}  Kd7 {[%clk 0:00:16]} 20. Qxd2 {[%clk 0:01:04]}  Kc7 {[%clk 0:00:16]} 21. Qf2 {[%clk 0:01:04]}  Qd7 {[%clk 0:00:16]} 22. Qf5 {[%clk 0:01:03]}  Rhh8 {[%clk 0:00:16]} 23. Qxd7+ {[%clk 0:00:56]}  Kxd7 {[%clk 0:00:16]} 24. Kf2 {[%clk 0:00:56]}  Ra6 {[%clk 0:00:16]} 25. Rab1 {[%clk 0:00:51]}  Rb6 {[%clk 0:00:17]} 26. b3 {[%clk 0:00:52]}  Nb4 {[%clk 0:00:15]} 27. Ke2 {[%clk 0:00:52]}  Na6 {[%clk 0:00:15]} 28. Rf3 {[%clk 0:00:42]}  Nc5 {[%clk 0:00:15]} 29. Rh3 {[%clk 0:00:41]}  Rxb3 {[%clk 0:00:15]} 30. Rxb3 {[%clk 0:00:40]}  Nxb3 {[%clk 0:00:16]} 31. g4 {[%clk 0:00:39]}  Nc5 {[%clk 0:00:16]} 32. Rh5 {[%clk 0:00:35]}  Nxa4 {[%clk 0:00:15]} 33. g5 {[%clk 0:00:35]}  Nc3+ {[%clk 0:00:14]} 34. Kd2 {[%clk 0:00:34]}  a4 {[%clk 0:00:15]} 35. Kc2 {[%clk 0:00:34]}  a3 {[%clk 0:00:15]} 36. Rxh6 {[%clk 0:00:33]}  a2 {[%clk 0:00:14]} 37. Kb2 {[%clk 0:00:31]}  Ra8 {[%clk 0:00:13]} 38. Ka1 {[%clk 0:00:31]}  Ra3 {[%clk 0:00:14]} 0-1


[Site "https://www.chess.com"]

[Event "Titled Tuesday Blitz June 1 2021"]
[White "Dobrov, Vladimir"]
[Black "Sukandar, Irine Kharisma"]
[WhiteFideId "4136594"]
[BlackFideId "7101937"]
[WhiteElo "2614"]
[BlackElo "2313"]
[Result "1-0"]
[Round "03"]
[TimeControl "180+1"]
[Date "2021.06.01"]
[WhiteClock "0:01:15"]
[BlackClock "0:00:11"]

1. d4 {[%clk 0:03:00]}  Nf6 {[%clk 0:02:58]} 2. c4 {[%clk 0:03:01]}  b6 {[%clk 0:02:57]} 3. Nf3 {[%clk 0:03:00]}  Bb7 {[%clk 0:02:58]} 4. Nc3 {[%clk 0:03:01]}  g6 {[%clk 0:02:56]} 5. Qc2 {[%clk 0:02:59]}  Bg7 {[%clk 0:02:43]} 6. e4 {[%clk 0:02:58]}  d6 {[%clk 0:02:43]} 7. Be2 {[%clk 0:02:57]}  O-O {[%clk 0:02:43]} 8. O-O {[%clk 0:02:57]}  Nbd7 {[%clk 0:02:37]} 9. Rd1 {[%clk 0:02:53]}  e6 {[%clk 0:02:25]} 10. e5 {[%clk 0:02:44]}  Ne8 {[%clk 0:02:24]} 11. Bg5 {[%clk 0:02:44]}  Qc8 {[%clk 0:02:17]} 12. Be7 {[%clk 0:02:39]}  dxe5 {[%clk 0:02:11]} 13. Bxf8 {[%clk 0:02:39]}  Kxf8 {[%clk 0:02:08]} 14. d5 {[%clk 0:02:29]}  exd5 {[%clk 0:01:54]} 15. Nxd5 {[%clk 0:02:27]}  Nd6 {[%clk 0:01:53]} 16. Ng5 {[%clk 0:02:10]}  Qd8 {[%clk 0:01:44]} 17. Ne4 {[%clk 0:02:01]}  Bxd5 {[%clk 0:01:25]} 18. Nxd6 {[%clk 0:01:45]}  Be6 {[%clk 0:01:24]} 19. Nb5 {[%clk 0:01:38]}  a6 {[%clk 0:01:17]} 20. Nc3 {[%clk 0:01:37]}  f5 {[%clk 0:01:11]} 21. c5 {[%clk 0:01:36]}  Qg5 {[%clk 0:01:04]} 22. cxb6 {[%clk 0:01:25]}  cxb6 {[%clk 0:01:03]} 23. Rd6 {[%clk 0:01:25]}  Qe7 {[%clk 0:00:35]} 24. Rad1 {[%clk 0:01:25]}  Nf6 {[%clk 0:00:33]} 25. Rxb6 {[%clk 0:01:23]}  e4 {[%clk 0:00:26]} 26. Rxa6 {[%clk 0:01:21]}  Rc8 {[%clk 0:00:23]} 27. Qa4 {[%clk 0:01:19]}  Bh6 {[%clk 0:00:11]} 28. Ra8 {[%clk 0:01:15]} 1-0


[Site "https://www.chess.com"]

[Event "Titled Tuesday Blitz June 1 2021"]
[White "Donchenko, Alexander"]
[Black "Fus, Jakub"]
[WhiteFideId "24603295"]
[BlackFideId "1193023"]
[WhiteElo "2798"]
[BlackElo "2622"]
[Result "1-0"]
[Round "03"]
[TimeControl "180+1"]
[Date "2021.06.01"]
[WhiteClock "0:01:15"]
[BlackClock "0:01:07"]

1. e4 {[%clk 0:03:00]}  c6 {[%clk 0:02:57]} 2. d4 {[%clk 0:02:59]}  d5 {[%clk 0:02:58]} 3. exd5 {[%clk 0:02:59]}  cxd5 {[%clk 0:02:58]} 4. Bd3 {[%clk 0:03:00]}  Nc6 {[%clk 0:02:58]} 5. c3 {[%clk 0:03:00]}  Nf6 {[%clk 0:02:59]} 6. h3 {[%clk 0:03:00]}  g6 {[%clk 0:02:59]} 7. Nf3 {[%clk 0:03:00]}  Bf5 {[%clk 0:02:59]} 8. Be2 {[%clk 0:02:58]}  Bg7 {[%clk 0:02:58]} 9. Nbd2 {[%clk 0:02:57]}  O-O {[%clk 0:02:58]} 10. Nf1 {[%clk 0:02:57]}  Ne4 {[%clk 0:02:57]} 11. Ne3 {[%clk 0:02:57]}  Bc8 {[%clk 0:02:57]} 12. O-O {[%clk 0:02:56]}  Rb8 {[%clk 0:02:38]} 13. a4 {[%clk 0:02:55]}  e5 {[%clk 0:02:35]} 14. dxe5 {[%clk 0:02:52]}  Nxe5 {[%clk 0:02:34]} 15. Nxe5 {[%clk 0:02:49]}  Bxe5 {[%clk 0:02:35]} 16. Qxd5 {[%clk 0:02:48]}  Qxd5 {[%clk 0:02:33]} 17. Nxd5 {[%clk 0:02:49]}  Be6 {[%clk 0:02:33]} 18. Bf4 {[%clk 0:02:44]}  Bxd5 {[%clk 0:02:21]} 19. Bxe5 {[%clk 0:02:44]}  Rbe8 {[%clk 0:02:22]} 20. Bd4 {[%clk 0:02:21]}  Ng3 {[%clk 0:02:19]} 21. fxg3 {[%clk 0:02:01]}  Rxe2 {[%clk 0:02:18]} 22. Rf2 {[%clk 0:02:01]}  Rxf2 {[%clk 0:02:08]} 23. Kxf2 {[%clk 0:02:02]}  a6 {[%clk 0:02:08]} 24. a5 {[%clk 0:01:58]}  Re8 {[%clk 0:02:06]} 25. Rd1 {[%clk 0:01:58]}  Bc6 {[%clk 0:02:06]} 26. Bf6 {[%clk 0:01:57]}  Re6 {[%clk 0:02:01]} 27. Rd8+ {[%clk 0:01:55]}  Re8 {[%clk 0:02:01]} 28. Rd2 {[%clk 0:01:42]}  Re6 {[%clk 0:02:01]} 29. Bg5 {[%clk 0:01:41]}  f6 {[%clk 0:02:00]} 30. Bf4 {[%clk 0:01:41]}  Kf7 {[%clk 0:02:00]} 31. g4 {[%clk 0:01:37]}  Ke7 {[%clk 0:01:26]} 32. g5 {[%clk 0:01:36]}  Re4 {[%clk 0:01:18]} 33. Kg3 {[%clk 0:01:33]}  fxg5 {[%clk 0:01:17]} 34. Bxg5+ {[%clk 0:01:34]}  Ke6 {[%clk 0:01:17]} 35. Bf4 {[%clk 0:01:28]}  Kf5 {[%clk 0:01:15]} 36. Bc7 {[%clk 0:01:28]}  g5 {[%clk 0:01:11]} 37. Bb6 {[%clk 0:01:24]}  h5 {[%clk 0:01:11]} 38. Kf2 {[%clk 0:01:23]}  Rf4+ {[%clk 0:01:07]} 39. Kg1 {[%clk 0:01:21]}  g4 {[%clk 0:01:07]} 40. hxg4+ {[%clk 0:01:20]}  Rxg4 {[%clk 0:01:08]} 41. Bd8 {[%clk 0:01:16]}  Rh4 {[%clk 0:01:07]} 42. Bxh4 {[%clk 0:01:15]} 1-0


[Site "https://www.chess.com"]

[Event "Titled Tuesday Blitz June 1 2021"]
[White "Wagner, Dinara"]
[Black "Khusnutdinov, Rustam"]
[WhiteFideId "24157570"]
[BlackFideId "13701703"]
[WhiteElo "2260"]
[BlackElo "2571"]
[Result "0-1"]
[Round "03"]
[TimeControl "180+1"]
[Date "2021.06.01"]
[WhiteClock "0:00:04"]
[BlackClock "0:00:18"]

1. Nf3 {[%clk 0:03:00]}  Nf6 {[%clk 0:02:58]} 2. d4 {[%clk 0:03:01]}  g6 {[%clk 0:02:57]} 3. c4 {[%clk 0:03:01]}  c5 {[%clk 0:02:56]} 4. d5 {[%clk 0:02:54]}  d6 {[%clk 0:02:56]} 5. Nc3 {[%clk 0:02:54]}  Bg7 {[%clk 0:02:56]} 6. e4 {[%clk 0:02:53]}  O-O {[%clk 0:02:56]} 7. h3 {[%clk 0:02:50]}  e6 {[%clk 0:02:56]} 8. Bd3 {[%clk 0:02:51]}  exd5 {[%clk 0:02:56]} 9. exd5 {[%clk 0:02:51]}  Re8+ {[%clk 0:02:56]} 10. Be3 {[%clk 0:02:51]}  Rxe3+ {[%clk 0:02:56]} 11. fxe3 {[%clk 0:02:50]}  Nbd7 {[%clk 0:02:57]} 12. O-O {[%clk 0:02:49]}  Qe7 {[%clk 0:02:56]} 13. Qd2 {[%clk 0:02:48]}  Nh5 {[%clk 0:02:55]} 14. Rae1 {[%clk 0:02:46]}  Ne5 {[%clk 0:02:40]} 15. b3 {[%clk 0:01:59]}  Bd7 {[%clk 0:02:38]} 16. Ne2 {[%clk 0:01:59]}  Re8 {[%clk 0:02:29]} 17. Nf4 {[%clk 0:01:58]}  Ng3 {[%clk 0:02:22]} 18. Rf2 {[%clk 0:01:56]}  Nxd3 {[%clk 0:02:21]} 19. Qxd3 {[%clk 0:01:52]}  Ne4 {[%clk 0:02:08]} 20. Rff1 {[%clk 0:01:52]}  Ng3 {[%clk 0:02:07]} 21. Rf2 {[%clk 0:01:52]}  Ne4 {[%clk 0:02:06]} 22. Rff1 {[%clk 0:01:48]}  Bf5 {[%clk 0:01:55]} 23. Qd1 {[%clk 0:01:38]}  h5 {[%clk 0:01:53]} 24. Qc1 {[%clk 0:01:22]}  Qd7 {[%clk 0:01:51]} 25. Nd2 {[%clk 0:01:17]}  Ng3 {[%clk 0:01:39]} 26. Rf2 {[%clk 0:01:17]}  Qd8 {[%clk 0:01:23]} 27. Rf3 {[%clk 0:01:12]}  h4 {[%clk 0:01:23]} 28. Nf1 {[%clk 0:01:07]}  Ne4 {[%clk 0:01:22]} 29. Nd2 {[%clk 0:01:07]}  Ng5 {[%clk 0:01:05]} 30. Rff1 {[%clk 0:01:05]}  Be5 {[%clk 0:01:02]} 31. Nf3 {[%clk 0:01:01]}  Nxf3+ {[%clk 0:01:02]} 32. Rxf3 {[%clk 0:00:59]}  Be4 {[%clk 0:01:02]} 33. Rf2 {[%clk 0:00:54]}  Qg5 {[%clk 0:01:02]} 34. Qd1 {[%clk 0:00:53]}  Qg3 {[%clk 0:00:38]} 35. Qg4 {[%clk 0:00:50]}  g5 {[%clk 0:00:39]} 36. Ne2 {[%clk 0:00:07]}  Qxe3 {[%clk 0:00:26]} 37. Kf1 {[%clk 0:00:04]}  Bd3 {[%clk 0:00:21]} 38. Qh5 {[%clk 0:00:04]}  Re7 {[%clk 0:00:19]} 39. Qg4 {[%clk 0:00:04]}  Bd4 {[%clk 0:00:18]} 0-1


[Site "https://www.chess.com"]

[Event "Titled Tuesday Blitz June 1 2021"]
[White "Farahat, Ali"]
[Black "Samunenkov, Ihor"]
[WhiteFideId "10600507"]
[BlackFideId "14187086"]
[WhiteElo "2352"]
[BlackElo "2242"]
[Result "0-1"]
[Round "03"]
[TimeControl "180+1"]
[Date "2021.06.01"]
[WhiteClock "0:00:09"]
[BlackClock "0:00:05"]

1. e4 {[%clk 0:03:00]}  c5 {[%clk 0:02:59]} 2. Nf3 {[%clk 0:03:00]}  Nc6 {[%clk 0:03:00]} 3. Bb5 {[%clk 0:03:00]}  g6 {[%clk 0:03:00]} 4. O-O {[%clk 0:03:00]}  Bg7 {[%clk 0:03:00]} 5. c3 {[%clk 0:03:00]}  e5 {[%clk 0:03:00]} 6. d4 {[%clk 0:03:00]}  cxd4 {[%clk 0:02:59]} 7. cxd4 {[%clk 0:03:00]}  exd4 {[%clk 0:03:00]} 8. Bf4 {[%clk 0:03:00]}  a6 {[%clk 0:03:00]} 9. Bc4 {[%clk 0:02:59]}  d6 {[%clk 0:03:00]} 10. Nbd2 {[%clk 0:02:37]}  Nge7 {[%clk 0:02:57]} 11. a3 {[%clk 0:02:29]}  O-O {[%clk 0:02:53]} 12. Rc1 {[%clk 0:02:28]}  b5 {[%clk 0:02:34]} 13. Ba2 {[%clk 0:02:24]}  Bb7 {[%clk 0:02:28]} 14. Re1 {[%clk 0:02:21]}  Ne5 {[%clk 0:02:17]} 15. Qb3 {[%clk 0:01:57]}  N7c6 {[%clk 0:02:10]} 16. Bg5 {[%clk 0:01:11]}  Qd7 {[%clk 0:02:04]} 17. Rcd1 {[%clk 0:00:59]}  Rac8 {[%clk 0:02:00]} 18. h3 {[%clk 0:00:55]}  Na5 {[%clk 0:01:59]} 19. Qb4 {[%clk 0:00:56]}  Nac6 {[%clk 0:01:31]} 20. Qb3 {[%clk 0:00:54]}  Ba8 {[%clk 0:01:30]} 21. Nf1 {[%clk 0:00:50]}  Nc4 {[%clk 0:01:26]} 22. Re2 {[%clk 0:00:41]}  Rfe8 {[%clk 0:01:19]} 23. Qd3 {[%clk 0:00:38]}  N6e5 {[%clk 0:01:13]} 24. Nxe5 {[%clk 0:00:38]}  dxe5 {[%clk 0:01:13]} 25. Rc2 {[%clk 0:00:29]}  Nd6 {[%clk 0:01:10]} 26. f3 {[%clk 0:00:22]}  Rxc2 {[%clk 0:01:07]} 27. Qxc2 {[%clk 0:00:23]}  Rc8 {[%clk 0:01:07]} 28. Qb3 {[%clk 0:00:23]}  Nc4 {[%clk 0:01:06]} 29. Nd2 {[%clk 0:00:18]}  h6 {[%clk 0:00:58]} 30. Bh4 {[%clk 0:00:18]}  Qd6 {[%clk 0:00:48]} 31. Rc1 {[%clk 0:00:14]}  d3 {[%clk 0:00:14]} 32. Nxc4 {[%clk 0:00:13]}  d2 {[%clk 0:00:03]} 33. Nxd2 {[%clk 0:00:12]}  Rxc1+ {[%clk 0:00:03]} 34. Nf1 {[%clk 0:00:11]}  Rc7 {[%clk 0:00:03]} 35. Bf2 {[%clk 0:00:10]}  Kh7 {[%clk 0:00:02]} 36. Kh2 {[%clk 0:00:10]}  Rd7 {[%clk 0:00:02]} 37. Qe3 {[%clk 0:00:10]}  Bf6 {[%clk 0:00:02]} 38. h4 {[%clk 0:00:08]}  h5 {[%clk 0:00:02]} 39. Qe2 {[%clk 0:00:08]}  Rc7 {[%clk 0:00:03]} 40. Qe1 {[%clk 0:00:08]}  Bb7 {[%clk 0:00:03]} 41. Be3 {[%clk 0:00:09]}  Bc8 {[%clk 0:00:03]} 42. Qg3 {[%clk 0:00:09]}  Be6 {[%clk 0:00:03]} 43. Qf2 {[%clk 0:00:10]}  Bxa2 {[%clk 0:00:03]} 44. f4 {[%clk 0:00:10]}  exf4 {[%clk 0:00:03]} 45. Bxf4 {[%clk 0:00:11]}  Be5 {[%clk 0:00:03]} 46. Bxe5 {[%clk 0:00:10]}  Qxe5+ {[%clk 0:00:04]} 47. g3 {[%clk 0:00:09]}  Be6 {[%clk 0:00:04]} 48. Ne3 {[%clk 0:00:09]}  Qxe4 {[%clk 0:00:05]} 0-1


[Site "https://www.chess.com"]

[Event "Titled Tuesday Blitz June 1 2021"]
[White "Fayzullaev, Akmal"]
[Black "Kezin, Roman"]
[WhiteFideId "14200554"]
[BlackFideId "24124621"]
[WhiteElo "2264"]
[BlackElo "2574"]
[Result "0-1"]
[Round "03"]
[TimeControl "180+1"]
[Date "2021.06.01"]
[WhiteClock "0:00:20"]
[BlackClock "0:00:52"]

1. e4 {[%clk 0:02:56]}  c5 {[%clk 0:02:59]} 2. Nf3 {[%clk 0:02:56]}  b6 {[%clk 0:02:59]} 3. d4 {[%clk 0:02:55]}  cxd4 {[%clk 0:03:00]} 4. Nxd4 {[%clk 0:02:56]}  Bb7 {[%clk 0:03:01]} 5. Nc3 {[%clk 0:02:56]}  a6 {[%clk 0:02:55]} 6. a4 {[%clk 0:02:49]}  e6 {[%clk 0:02:52]} 7. g3 {[%clk 0:02:48]}  Nf6 {[%clk 0:02:50]} 8. Bg2 {[%clk 0:02:49]}  Bb4 {[%clk 0:02:50]} 9. O-O {[%clk 0:02:43]}  Bxc3 {[%clk 0:02:49]} 10. bxc3 {[%clk 0:02:43]}  Bxe4 {[%clk 0:02:49]} 11. Bxe4 {[%clk 0:02:37]}  Nxe4 {[%clk 0:02:47]} 12. Qg4 {[%clk 0:02:38]}  d5 {[%clk 0:02:41]} 13. f3 {[%clk 0:02:25]}  Nf6 {[%clk 0:02:19]} 14. Qxg7 {[%clk 0:02:22]}  Rg8 {[%clk 0:02:19]} 15. Qh6 {[%clk 0:02:23]}  Rg6 {[%clk 0:02:18]} 16. Qh4 {[%clk 0:02:21]}  Nbd7 {[%clk 0:02:18]} 17. Re1 {[%clk 0:02:15]}  Qc7 {[%clk 0:02:12]} 18. Bd2 {[%clk 0:02:05]}  O-O-O {[%clk 0:02:08]} 19. Kh1 {[%clk 0:01:57]}  Rdg8 {[%clk 0:01:56]} 20. Rab1 {[%clk 0:01:56]}  h6 {[%clk 0:01:24]} 21. Rb4 {[%clk 0:01:54]}  Ne8 {[%clk 0:01:24]} 22. Reb1 {[%clk 0:01:48]}  Nd6 {[%clk 0:01:23]} 23. Qe7 {[%clk 0:01:26]}  Re8 {[%clk 0:01:18]} 24. Qh4 {[%clk 0:01:26]}  e5 {[%clk 0:01:17]} 25. Ne2 {[%clk 0:01:22]}  Nc4 {[%clk 0:01:16]} 26. Bc1 {[%clk 0:01:19]}  f5 {[%clk 0:01:13]} 27. Qh3 {[%clk 0:01:13]}  f4 {[%clk 0:01:08]} 28. Qf5 {[%clk 0:00:58]}  Rf6 {[%clk 0:01:06]} 29. Qd3 {[%clk 0:00:58]}  Qc6 {[%clk 0:01:03]} 30. Bd2 {[%clk 0:00:39]}  Nc5 {[%clk 0:01:01]} 31. Rxc4 {[%clk 0:00:35]}  dxc4 {[%clk 0:01:00]} 32. Qxc4 {[%clk 0:00:31]}  Qxf3+ {[%clk 0:01:00]} 33. Kg1 {[%clk 0:00:32]}  fxg3 {[%clk 0:01:01]} 34. Nxg3 {[%clk 0:00:27]}  Qf2+ {[%clk 0:01:01]} 35. Kh1 {[%clk 0:00:27]}  Qxd2 {[%clk 0:01:02]} 36. Ne4 {[%clk 0:00:24]}  Qd8 {[%clk 0:00:54]} 37. Nxc5 {[%clk 0:00:20]}  bxc5 {[%clk 0:00:53]} 38. Qxc5+ {[%clk 0:00:19]}  Qc7 {[%clk 0:00:53]} 39. Qd5 {[%clk 0:00:20]}  Qc6 {[%clk 0:00:52]} 0-1


[Site "https://www.chess.com"]

[Event "Titled Tuesday Blitz June 1 2021"]
[White "Fedoseev, Vladimir"]
[Black "Shapkin, Anatoliy"]
[WhiteFideId "24130737"]
[BlackFideId "34108332"]
[WhiteElo "2756"]
[BlackElo "2223"]
[Result "1-0"]
[Round "03"]
[TimeControl "180+1"]
[Date "2021.06.01"]
[WhiteClock "0:01:18"]
[BlackClock "0:01:02"]

1. e4 {[%clk 0:03:00]}  e5 {[%clk 0:02:59]} 2. Nf3 {[%clk 0:02:57]}  Nc6 {[%clk 0:03:00]} 3. Bb5 {[%clk 0:02:56]}  Nf6 {[%clk 0:03:00]} 4. d3 {[%clk 0:02:55]}  Bc5 {[%clk 0:03:00]} 5. c3 {[%clk 0:02:53]}  O-O {[%clk 0:02:59]} 6. Bg5 {[%clk 0:02:51]}  d6 {[%clk 0:02:57]} 7. Nbd2 {[%clk 0:02:49]}  h6 {[%clk 0:02:55]} 8. Bh4 {[%clk 0:02:48]}  g5 {[%clk 0:02:56]} 9. Bg3 {[%clk 0:02:48]}  a6 {[%clk 0:02:49]} 10. Bxc6 {[%clk 0:02:45]}  bxc6 {[%clk 0:02:50]} 11. d4 {[%clk 0:02:43]}  exd4 {[%clk 0:02:43]} 12. cxd4 {[%clk 0:02:40]}  Ba7 {[%clk 0:02:40]} 13. O-O {[%clk 0:02:10]}  g4 {[%clk 0:02:33]} 14. Bh4 {[%clk 0:01:51]}  gxf3 {[%clk 0:02:29]} 15. Nxf3 {[%clk 0:01:52]}  Bg4 {[%clk 0:02:14]} 16. Qd2 {[%clk 0:01:41]}  Kh7 {[%clk 0:01:59]} 17. Qf4 {[%clk 0:01:34]}  Bxf3 {[%clk 0:01:06]} 18. Bxf6 {[%clk 0:01:22]}  Qxf6 {[%clk 0:01:06]} 19. Qxf6 {[%clk 0:01:20]}  Bxe4 {[%clk 0:01:06]} 20. Rfe1 {[%clk 0:01:19]}  Rae8 {[%clk 0:01:02]} 21. Rxe4 {[%clk 0:01:18]} 1-0


[Site "https://www.chess.com"]